bitfinex/quotes_SOLUSD_20250102
["timestamp","ask_amount","ask_price","bid_price","bid_amount"]
[1735810409722,9.99790378,207.67,207.66,2.58241023]
[1735810410023,8.04111187,207.67,207.66,2.58241023]
[1735810411017,12.0374,207.69,207.66,2.58241023]
[1735810411224,8.04111187,207.68,207.67,5.0]
[1735810412620,20.07851187,207.69,207.68,2.58241023]
[1735810414748,8.04111187,207.69,207.68,2.58241023]
[1735810415031,12.0348,207.74,207.7,2.58241023]
[1735810415210,20.0,207.71,207.7,2.58241023]
[1735810416134,28.04111187,207.71,207.7,2.58241023]
[1735810416318,28.04111187,207.71,207.7,7.58241023]
[1735810419622,28.04111187,207.71,207.7,2.58241023]
[1735810419935,28.04111187,207.71,207.7,7.58241023]
[1735810420434,12.0348,207.74,207.7,7.58241023]
[1735810420647,12.0348,207.74,207.65,8.04111187]
[1735810420648,12.0348,207.74,207.73,2.58241023]
[1735810421738,20.07591187,207.74,207.73,2.58241023]
[1735810426239,20.07591187,207.74,207.71,2.58241023]
[1735810426534,12.036,207.71,207.68,5.0]
[1735810426738,20.07711187,207.71,207.68,5.0]
[1735810427620,20.07711187,207.71,207.66,5.0]
[1735810427821,8.04111187,207.68,207.66,5.0]
[1735810428741,8.04111187,207.69,207.66,5.0]
[1735810429226,8.04111187,207.69,207.68,5.0]
[1735810431126,8.04111187,207.69,207.66,5.0]
[1735810431327,8.04111187,207.68,207.66,5.0]
[1735810433251,12.037,207.7,207.68,5.0]
[1735810433549,8.04111187,207.69,207.68,5.0]
[1735810436038,8.04111187,207.7,207.68,5.0]
[1735810437850,8.04111187,207.71,207.7,5.0]
[1735810439138,8.04111187,207.72,207.7,5.0]
[1735810439341,12.0336,207.75,207.74,5.0]
[1735810439544,20.07471187,207.75,207.74,5.0]
[1735810439854,12.0336,207.75,207.74,5.0]
[1735810440048,20.07471187,207.75,207.74,5.0]
[1735810443473,23.776884,207.74,207.71,5.0]
[1735810443754,8.04111187,207.72,207.71,5.0]
[1735810445262,8.04111187,207.72,207.69,5.0]
[1735810445461,12.0353,207.73,207.69,5.0]
[1735810445462,8.04111187,207.71,207.69,5.0]
[1735810446442,8.04111187,207.7,207.67,5.0]
[1735810446637,8.04111187,207.69,207.67,5.0]
[1735810448060,7.5246596,207.79,207.77,5.0]
[1735810449261,15.04931921,207.81,207.77,5.0]
[1735810449262,8.04111187,207.81,207.77,5.0]
[1735810449464,12.0307,207.8,207.77,5.0]
[1735810453773,20.07181187,207.8,207.77,5.0]
[1735810455187,12.0307,207.8,207.77,5.0]
[1735810456167,20.07181187,207.8,207.77,5.0]
[1735810457795,8.04111187,207.79,207.77,5.0]
[1735810457989,8.04111187,207.78,207.77,5.0]
[1735810458177,8.04111187,207.78,207.75,5.0]
[1735810458794,20.07351187,207.78,207.75,5.0]
[1735810459296,12.0324,207.78,207.75,5.0]
[1735810465304,20.07351187,207.78,207.75,5.0]
[1735810465885,12.0324,207.78,207.75,5.0]
[1735810470108,20.07351187,207.78,207.75,5.0]
[1735810471705,12.0324,207.78,207.75,5.0]
[1735810473807,20.07351187,207.78,207.75,5.0]
[1735810474708,20.0,207.73,207.69,5.0]
[1735810474888,8.04111187,207.7,207.69,5.0]
[1735810475095,8.04111187,207.7,207.67,5.0]
[1735810475324,8.04111187,207.68,207.67,5.0]
[1735810476992,8.04111187,207.7,207.69,5.0]
[1735810477718,8.04111187,207.7,207.67,5.0]
[1735810477897,8.04111187,207.68,207.67,5.0]
[1735810479392,8.04111187,207.69,207.67,5.0]
[1735810482296,13.94756982,207.72,207.69,5.0]
[1735810482297,8.04111187,207.71,207.69,5.0]
[1735810482602,8.04111187,207.7,207.67,5.0]
[1735810484019,8.04111187,207.7,207.69,5.0]
[1735810485318,8.04111187,207.71,207.69,5.0]
[1735810485616,37.72445382,207.72,207.71,5.0]
[1735810485617,12.036,207.72,207.71,5.0]
[1735810485993,8.04111187,207.74,207.71,5.0]
[1735810486209,20.0,207.74,207.73,5.0]
[1735810486719,28.04111187,207.74,207.73,5.0]
[1735810486917,23.776884,207.73,207.68,5.0]
[1735810487225,8.04111187,207.71,207.7,5.0]
[1735810487624,20.07711187,207.71,207.7,5.0]
[1735810488630,20.07711187,207.71,207.68,5.0]
[1735810489016,8.04111187,207.7,207.68,5.0]
[1735810489224,12.0371,207.69,207.68,5.0]
[1735810489426,20.07821187,207.69,207.68,5.0]
[1735810490223,20.0,207.73,207.68,5.0]
[1735810490529,8.04111187,207.7,207.68,5.0]
[1735810492226,8.04111187,207.69,207.68,5.0]
[1735810493221,8.04111187,207.7,207.68,5.0]
[1735810493419,20.07811187,207.7,207.68,5.0]
[1735810494522,8.04111187,207.69,207.68,5.0]
[1735810494727,8.04111187,207.69,207.63,8.04111187]
[1735810494728,20.0,207.66,207.61,5.0]
[1735810495034,8.04111187,207.63,207.61,5.0]
[1735810495401,8.04111187,207.62,207.61,5.0]
[1735810496540,20.0,207.6,207.59,15.56483199]
[1735810496917,8.04111187,207.61,207.59,15.56483199]
[1735810497631,8.04111187,207.62,207.59,15.56483199]
[1735810497805,24.0766,207.68,207.59,4.04003199]
[1735810497806,31.81799587,207.6,207.59,4.04003199]
[1735810498010,31.81799587,207.6,207.59,0.08363199]
[1735810498327,31.81799587,207.6,207.59,3.199e-05]
[1735810499929,43.86029587,207.6,207.59,3.199e-05]
[1735810500529,76.02474335,207.6,207.59,3.199e-05]
[1735810501211,28.04111187,207.56,207.55,5.0]
[1735810501610,51.81799587,207.56,207.55,5.0]
[1735810501819,23.776884,207.55,207.51,12.8883432]
[1735810502019,8.04111187,207.53,207.51,12.8883432]
[1735810502213,8.04111187,207.52,207.51,8.0680432]
[1735810502416,8.04111187,207.52,207.51,4.3411432]
[1735810502624,8.04111187,207.52,207.51,4.32e-05]
[1735810503338,20.0,207.49,207.46,1.9897]
[1735810503713,20.0,207.49,207.48,1.9897]
[1735810505946,8.04111187,207.5,207.48,1.9897]
[1735810506843,13.98490391,207.52,207.48,1.9897]
[1735810507147,8.04111187,207.5,207.48,1.9897]
[1735810507527,20.0,207.49,207.48,1.9897]
[1735810510359,32.0488,207.49,207.46,1.9897]
[1735810510641,40.08991187,207.49,207.46,1.9897]
[1735810511928,8.04111187,207.48,207.46,1.9897]
[1735810512227,40.08991187,207.49,207.46,1.9897]
[1735810512428,32.0488,207.49,207.46,1.9897]
[1735810513149,1.93770391,207.52,207.48,1.9897]
[1735810513323,8.04111187,207.52,207.48,1.9897]
[1735810514246,12.0446,207.57,207.54,1.9897]
[1735810514430,12.0446,207.57,207.56,1.9897]
[1735810515330,20.0,207.57,207.56,1.9897]
[1735810515735,32.12581187,207.6,207.56,1.9897]
[1735810516159,23.776884,207.59,207.56,1.9897]
[1735810516527,20.0,207.57,207.56,1.9897]
[1735810517567,20.0,207.57,207.54,1.9897]
[1735810517739,12.0447,207.56,207.54,1.9897]
[1735810517945,26.00727427,207.6,207.54,1.9897]
[1735810518142,12.0429,207.6,207.57,1.9897]
[1735810518546,12.0429,207.6,207.59,1.9897]
[1735810520977,20.0,207.58,207.57,1.9897]
[1735810522654,20.0,207.58,207.55,1.9897]
[1735810522853,35.820984,207.57,207.55,1.9897]
[1735810523171,8.04111187,207.56,207.53,1.9897]
[1735810523552,35.820984,207.57,207.55,1.9897]
[1735810523748,43.86209587,207.57,207.55,1.9897]
[1735810524183,12.0441,207.57,207.55,1.9897]
[1735810524393,8.04111187,207.59,207.57,1.9897]
[1735810525291,8.04111187,207.58,207.53,1.9897]
[1735810525494,8.04111187,207.55,207.53,1.9897]
[1735810525667,8.04111187,207.54,207.51,1.9897]
[1735810526056,8.04111187,207.54,207.43,12.79955441]
[1735810526057,8.04111187,207.52,207.47,1.9897]
[1735810526258,8.04111187,207.49,207.47,1.9897]
[1735810526964,8.04111187,207.48,207.45,1.9897]
[1735810527191,8.04111187,207.47,207.45,1.9897]
[1735810527494,20.09121187,207.47,207.45,1.9897]
[1735810527962,8.04111187,207.46,207.45,1.9897]
[1735810529179,8.04111187,207.46,207.43,11.23245441]
[1735810529180,8.04111187,207.46,207.43,13.22215441]
[1735810529376,24.0945,207.52,207.43,13.22215441]
[1735810529377,8.04111187,207.44,207.43,13.22215441]
[1735810529563,8.04111187,207.44,207.43,11.23245441]
[1735810529877,31.81799587,207.44,207.43,11.23245441]
[1735810531882,31.81799587,207.44,207.43,4.82355441]
[1735810532068,31.81799587,207.44,207.43,5.441e-05]
[1735810533573,24.0963,207.51,207.43,5.441e-05]
[1735810533574,12.0493,207.49,207.43,5.441e-05]
[1735810533773,12.0493,207.49,207.46,1.9897]
[1735810534098,1.5511,207.6,207.54,1.9897]
[1735810534273,12.044,207.58,207.56,1.9897]
[1735810537285,12.57023881,207.61,207.6,1.9897]
[1735810537586,12.0416,207.62,207.6,1.9897]
[1735810538996,12.57023881,207.61,207.58,1.9897]
[1735810539865,24.61203881,207.61,207.6,1.9897]
[1735810540064,12.0418,207.61,207.6,1.9897]
[1735810543879,12.0418,207.61,207.5,23.89933881]
[1735810543880,136.17738813,207.47,207.43,5.441e-05]
[1735810544066,0.72261187,207.46,207.43,5.441e-05]
[1735810545071,0.72261187,207.47,207.43,5.441e-05]
[1735810545269,0.72261187,207.5,207.44,12.57023881]
[1735810547390,0.72261187,207.5,207.44,12.07023881]
[1735810549499,12.0478,207.51,207.46,12.57023881]
[1735810549881,12.0478,207.51,207.47,12.57023881]
[1735810550076,0.72261187,207.52,207.47,12.57023881]
[1735810550278,0.72261187,207.53,207.48,12.57023881]
[1735810550675,0.72261187,207.54,207.48,12.57023881]
[1735810550881,12.57023881,207.58,207.51,12.57023881]
[1735810551076,0.72261187,207.57,207.52,12.57023881]
[1735810551282,0.72261187,207.58,207.52,12.57023881]
[1735810551809,0.72261187,207.58,207.48,6.98451929]
[1735810551810,13.29285068,207.58,207.51,12.57023881]
[1735810551979,13.29285068,207.58,207.48,6.2618]
[1735810551980,13.29285068,207.58,207.5,12.57023881]
[1735810552180,13.29285068,207.58,207.48,6.2618]
[1735810552181,12.57023881,207.57,207.49,12.57023881]
[1735810552484,0.72261187,207.56,207.49,12.57023881]
[1735810552695,13.29285068,207.56,207.49,12.57023881]
[1735810552885,0.72261187,207.56,207.49,12.57023881]
[1735810553086,0.72261187,207.56,207.5,12.57023881]
[1735810553291,13.29285068,207.57,207.5,12.57023881]
[1735810553595,13.29285068,207.57,207.49,12.57023881]
[1735810553596,12.57023881,207.56,207.49,12.57023881]
[1735810553802,0.72261187,207.55,207.49,12.57023881]
[1735810554679,0.72261187,207.55,207.5,12.57023881]
[1735810554902,0.72261187,207.56,207.5,12.57023881]
[1735810555102,0.72261187,207.56,207.49,12.57023881]
[1735810555103,25.33755068,207.56,207.49,12.57023881]
[1735810556102,12.76731187,207.56,207.49,12.57023881]
[1735810558276,20.0,207.53,207.48,12.57023881]
[1735810558487,20.0,207.53,207.45,0.72280687]
[1735810558488,12.57023881,207.51,207.44,12.57023881]
[1735810558703,0.72261187,207.5,207.44,12.57023881]
[1735810558998,0.72261187,207.5,207.43,5.441e-05]
[1735810558999,12.57023881,207.49,207.43,5.441e-05]
[1735810559219,0.72261187,207.48,207.43,5.441e-05]
[1735810559512,13.6497,207.54,207.44,12.57023881]
[1735810559513,24.61803881,207.51,207.44,12.57023881]
[1735810559816,24.61803881,207.51,207.43,5.441e-05]
[1735810559817,13.29285068,207.5,207.43,12.57029322]
[1735810561205,0.72261187,207.5,207.44,12.57023881]
[1735810562403,12.0478,207.51,207.45,12.57023881]
[1735810562607,12.77041187,207.51,207.45,12.57023881]
[1735810563608,25.34065068,207.51,207.44,12.57023881]
[1735810564408,25.34065068,207.51,207.43,5.441e-05]
[1735810564588,12.57023881,207.5,207.43,12.57029322]
[1735810564789,0.72261187,207.49,207.43,12.57029322]
[1735810565199,0.72261187,207.49,207.44,12.57023881]
[1735810565794,0.72261187,207.5,207.44,12.57023881]
[1735810566104,0.72261187,207.5,207.43,5.441e-05]
[1735810566105,24.61893881,207.49,207.43,5.441e-05]
[1735810566290,13.29285068,207.48,207.43,5.441e-05]
[1735810567411,0.72261187,207.48,207.43,5.441e-05]
[1735810571603,13.29285068,207.52,207.45,12.57023881]
[1735810572012,12.57023881,207.51,207.44,12.57023881]
[1735810572203,0.72261187,207.5,207.44,12.57023881]
[1735810573709,0.72261187,207.5,207.45,12.57023881]
[1735810574086,0.72261187,207.51,207.46,12.57023881]
[1735810574283,1.6033,207.54,207.49,12.57023881]
[1735810574284,2.32591187,207.54,207.49,12.57023881]
[1735810574487,0.72261187,207.54,207.49,12.57023881]
[1735810574696,12.76841187,207.55,207.49,12.57023881]
[1735810575610,25.33865068,207.55,207.48,12.57023881]
[1735810576484,25.33865068,207.55,207.47,12.57023881]
[1735810579186,32.57023881,207.52,207.44,12.57023881]
[1735810579808,32.57023881,207.52,207.45,12.57023881]
[1735810580109,44.61763881,207.52,207.45,12.57023881]
[1735810581900,0.72261187,207.51,207.44,12.57023881]
[1735810584235,0.72261187,207.51,207.44,8.05221927]
[1735810584397,20.10031927,207.5,207.43,5.441e-05]
[1735810584722,8.77483114,207.49,207.43,5.441e-05]
[1735810584913,0.72261187,207.49,207.44,8.05221927]
[1735810585105,0.72261187,207.49,207.43,8.05227368]
[1735810585307,0.72261187,207.49,207.44,8.05221927]
[1735810585708,0.72261187,207.49,207.43,8.05227368]
[1735810587626,0.72261187,207.49,207.43,5.441e-05]
[1735810587924,8.77483114,207.49,207.43,5.441e-05]
[1735810590938,12.0493,207.48,207.43,5.441e-05]
[1735810591237,0.72261187,207.47,207.43,5.441e-05]
[1735810592935,0.72261187,207.47,207.43,8.05227368]
[1735810593721,0.72261187,207.49,207.43,8.05227368]
[1735810594131,0.72261187,207.54,207.48,8.05221927]
[1735810594338,0.72261187,207.54,207.51,8.05221927]
[1735810594517,0.72261187,207.54,207.5,8.05221927]
[1735810594842,0.72261187,207.54,207.49,8.05221927]
[1735810595547,0.72261187,207.54,207.45,5.0]
[1735810595709,0.72261187,207.54,207.48,8.05221927]
[1735810596332,0.72261187,207.54,207.49,8.05221927]
[1735810596742,0.72261187,207.54,207.5,8.05221927]
[1735810596950,0.72261187,207.55,207.5,8.05221927]
[1735810597112,0.72261187,207.55,207.51,8.05221927]
[1735810597618,0.72261187,207.55,207.5,8.05221927]
[1735810599661,0.72261187,207.55,207.43,5.441e-05]
[1735810599662,0.72261187,207.55,207.51,8.05221927]
[1735810599952,0.72261187,207.59,207.53,8.05221927]
[1735810600653,0.72261187,207.59,207.55,8.05221927]
[1735810600822,0.72261187,207.61,207.55,8.05221927]
[1735810606962,12.0423,207.6,207.47,5.0]
[1735810607127,8.77483114,207.59,207.52,8.05221927]
[1735810608454,12.0435,207.58,207.51,8.05221927]
[1735810608630,0.72261187,207.57,207.51,8.05221927]
[1735810610946,12.0435,207.58,207.51,8.05221927]
[1735810610947,12.76611187,207.58,207.51,8.05221927]
[1735810611747,12.76611187,207.58,207.51,7.95221927]
[1735810613638,12.76611187,207.58,207.53,8.05221927]
[1735810613836,12.0435,207.58,207.53,8.05221927]
[1735810615956,12.0435,207.58,207.54,8.05221927]
[1735810616449,0.72261187,207.57,207.54,8.05221927]
[1735810616858,12.0435,207.58,207.54,8.05221927]
[1735810619261,0.72261187,207.57,207.54,8.05221927]
[1735810619754,0.72261187,207.57,207.49,5.0]
[1735810619954,0.72261187,207.57,207.54,8.05221927]
[1735810623354,12.0418,207.61,207.54,8.05221927]
[1735810624254,20.09401927,207.61,207.44,5.0]
[1735810624459,12.0418,207.61,207.54,8.05221927]
[1735810625868,8.05221927,207.6,207.52,8.05221927]
[1735810627540,12.0429,207.59,207.52,8.05221927]
[1735810629752,0.72261187,207.58,207.52,8.05221927]
[1735810629954,12.0441,207.57,207.52,8.05221927]
[1735810630770,0.72261187,207.56,207.52,8.05221927]
[1735810630981,0.72261187,207.56,207.53,8.05221927]
[1735810631148,0.72261187,207.59,207.54,8.05221927]
[1735810632467,0.72261187,207.59,207.46,23.776884]
[1735810632468,0.72261187,207.59,207.52,8.05221927]
[1735810633083,0.72261187,207.59,207.46,23.776884]
[1735810633374,0.72261187,207.59,207.52,8.05221927]
[1735810633679,0.72261187,207.59,207.53,8.05221927]
[1735810634561,12.0435,207.58,207.53,8.05221927]
[1735810634760,0.72261187,207.57,207.53,8.05221927]
[1735810636972,0.72261187,207.57,207.44,0.72274767]
[1735810636973,12.0447,207.56,207.44,0.72274767]
[1735810637167,0.72261187,207.55,207.48,8.05221927]
[1735810637770,0.72261187,207.55,207.49,8.05221927]
[1735810639570,12.043,207.59,207.52,8.05221927]
[1735810639874,0.72261187,207.58,207.53,8.05221927]
[1735810640252,0.72261187,207.58,207.52,8.05221927]
[1735810641778,0.72261187,207.58,207.51,8.05221927]
[1735810641963,0.72261187,207.58,207.52,8.05221927]
[1735810643078,0.72261187,207.58,207.5,8.05221927]
[1735810643380,12.0441,207.57,207.5,8.05221927]
[1735810643674,0.72261187,207.56,207.5,8.05221927]
[1735810643853,0.72261187,207.56,207.43,5.441e-05]
[1735810644070,7.12051187,207.56,207.48,8.05221927]
[1735810644275,1.5224,207.55,207.48,8.05221927]
[1735810644474,0.72261187,207.54,207.48,8.05221927]
[1735810644791,8.77483114,207.54,207.47,8.05221927]
[1735810645569,12.0464,207.53,207.47,8.05221927]
[1735810645768,0.72261187,207.52,207.47,8.05221927]
[1735810646570,12.0476,207.51,207.45,8.05221927]
[1735810646782,0.72261187,207.5,207.45,8.05221927]
[1735810647078,12.77021187,207.51,207.47,8.05221927]
[1735810647294,0.72261187,207.5,207.47,8.05221927]
[1735810647666,12.0476,207.51,207.47,8.05221927]
[1735810648584,0.72261187,207.5,207.47,8.05221927]
[1735810648963,0.72261187,207.53,207.47,8.05221927]
[1735810649162,0.72261187,207.53,207.48,8.05221927]
[1735810649363,0.72261187,207.53,207.49,8.05221927]
[1735810650190,2.24501187,207.55,207.51,8.05221927]
[1735810650401,1.5224,207.55,207.52,8.05221927]
[1735810650885,1.5224,207.55,207.53,8.05221927]
[1735810651893,0.72261187,207.57,207.53,8.05221927]
[1735810652085,12.044,207.58,207.53,8.05221927]
[1735810652585,2.24041187,207.6,207.54,8.05221927]
[1735810658394,14.28321187,207.6,207.54,8.05221927]
[1735810660008,14.28321187,207.6,207.48,23.776884]
[1735810660184,14.28321187,207.6,207.55,8.05221927]
[1735810660816,14.28321187,207.6,207.54,8.05221927]
[1735810661485,12.0428,207.6,207.57,8.05221927]
[1735810662113,12.0428,207.6,207.5,5.0]
[1735810662408,12.0428,207.6,207.56,8.05221927]
[1735810663289,12.0428,207.6,207.54,8.05221927]
[1735810665309,12.0428,207.6,207.55,8.05221927]
[1735810671096,12.76331187,207.63,207.57,8.05221927]
[1735810672713,8.05221927,207.62,207.55,8.05221927]
[1735810672918,0.72261187,207.62,207.54,8.05221927]
[1735810673123,0.72261187,207.62,207.56,8.05221927]
[1735810675001,12.76331187,207.63,207.56,8.05221927]
[1735810686835,20.81553114,207.63,207.56,8.05221927]
[1735810687329,20.81553114,207.63,207.54,8.05221927]
[1735810687330,8.05221927,207.61,207.54,8.05221927]
[1735810687534,8.05221927,207.61,207.47,5.0]
[1735810687535,0.72261187,207.6,207.52,8.05221927]
[1735810687921,28.77483114,207.6,207.52,8.05221927]
[1735810688626,12.0429,207.59,207.52,8.05221927]
[1735810688828,0.72261187,207.58,207.52,8.05221927]
[1735810690530,0.72261187,207.58,207.53,8.05221927]
[1735810691236,0.72261187,207.58,207.54,8.05221927]
[1735810691442,12.76381187,207.62,207.56,8.05221927]
[1735810694643,20.81603114,207.62,207.55,8.05221927]
[1735810696649,12.76381187,207.62,207.55,8.05221927]
[1735810701332,12.0412,207.62,207.59,8.05221927]
[1735810705247,8.77483114,207.61,207.54,8.05221927]
[1735810705439,8.05221927,207.59,207.52,8.05221927]
[1735810705637,0.72261187,207.58,207.53,8.05221927]
[1735810705853,0.72261187,207.6,207.53,8.05221927]
[1735810706352,0.72261187,207.6,207.54,8.05221927]
[1735810706529,12.0429,207.59,207.53,8.05221927]
[1735810706724,0.72261187,207.58,207.53,8.05221927]
[1735810713865,12.0441,207.57,207.46,23.776884]
[1735810714169,0.72261187,207.56,207.53,8.05221927]
[1735810714358,12.0441,207.57,207.53,8.05221927]
[1735810714651,0.72261187,207.56,207.45,6.6253]
[1735810714848,0.72261187,207.56,207.51,8.05221927]
[1735810715357,0.72261187,207.56,207.5,8.05221927]
[1735810715578,0.72261187,207.56,207.44,5.0]
[1735810715579,20.09741927,207.55,207.44,5.0]
[1735810715744,0.72261187,207.54,207.49,8.05221927]
[1735810717669,12.0464,207.53,207.49,8.05221927]
[1735810717879,0.72261187,207.52,207.49,8.05221927]
[1735810718563,0.72261187,207.55,207.5,8.05221927]
[1735810719566,0.72261187,207.55,207.43,23.77693841]
[1735810719758,0.72261187,207.55,207.5,8.05221927]
[1735810721680,12.0458,207.54,207.49,8.05221927]
[1735810721887,0.72261187,207.53,207.49,8.05221927]
[1735810722962,0.72261187,207.53,207.48,8.05221927]
[1735810724961,0.72261187,207.53,207.43,5.441e-05]
[1735810724962,12.047,207.52,207.43,5.441e-05]
[1735810725167,6.83391187,207.51,207.45,8.05221927]
[1735810725389,1.6399,207.5,207.43,5.441e-05]
[1735810725580,0.72261187,207.49,207.43,5.441e-05]
[1735810725782,0.72261187,207.49,207.45,8.05221927]
[1735810726182,12.77171187,207.49,207.45,8.05221927]
[1735810727695,12.77171187,207.49,207.46,8.05221927]
[1735810729601,12.0491,207.49,207.47,8.05221927]
[1735810729895,2.36251187,207.5,207.48,8.05221927]
[1735810729896,1.6399,207.5,207.48,8.05221927]
[1735810730071,12.047,207.52,207.49,8.05221927]
[1735810730480,0.72261187,207.51,207.46,8.05221927]
[1735810731113,0.72261187,207.51,207.43,5.441e-05]
[1735810731114,0.72261187,207.51,207.45,8.05221927]
[1735810731689,12.0481,207.5,207.45,8.05221927]
[1735810731886,0.72261187,207.49,207.45,8.05221927]
[1735810734506,0.72261187,207.49,207.44,8.05221927]
[1735810735884,13.5814,207.48,207.43,5.441e-05]
[1735810736085,0.72261187,207.47,207.43,5.441e-05]
[1735810736287,8.77483114,207.47,207.43,5.441e-05]
[1735810736499,8.05221927,207.46,207.43,5.441e-05]
[1735810736692,0.72261187,207.45,207.43,5.441e-05]
[1735810737809,0.72261187,207.46,207.44,8.05221927]
[1735810738390,0.72261187,207.47,207.43,5.441e-05]
[1735810738595,0.72261187,207.47,207.43,8.05227368]
[1735810740626,0.72261187,207.47,207.43,5.441e-05]
[1735810741082,0.72261187,207.47,207.43,8.05227368]
[1735810743025,0.72261187,207.47,207.43,5.441e-05]
[1735810743998,12.0505,207.46,207.43,5.441e-05]
[1735810744297,0.72261187,207.45,207.43,5.441e-05]
[1735810748217,2.25471187,207.48,207.43,5.441e-05]
[1735810751205,10.30693114,207.48,207.43,5.441e-05]
[1735810751406,12.0499,207.47,207.43,5.441e-05]
[1735810751728,0.72261187,207.46,207.43,5.441e-05]
[1735810753523,20.10321927,207.45,207.43,5.441e-05]
[1735810753728,0.72261187,207.44,207.43,5.441e-05]
[1735810757128,0.72261187,207.46,207.43,8.05227368]
[1735810757507,0.72261187,207.47,207.43,8.05227368]
[1735810757707,0.72261187,207.49,207.45,8.05221927]
[1735810758125,0.72261187,207.49,207.43,5.441e-05]
[1735810758317,0.72261187,207.5,207.44,8.05221927]
[1735810758515,0.72261187,207.5,207.45,8.05221927]
[1735810758714,0.72261187,207.5,207.46,8.05221927]
[1735810759031,0.72261187,207.5,207.45,8.05221927]
[1735810761134,0.72261187,207.5,207.46,8.05221927]
[1735810761738,0.72261187,207.5,207.43,20.00005441]
[1735810761739,0.72261187,207.5,207.45,8.05221927]
[1735810762123,0.72261187,207.5,207.44,8.05221927]
[1735810762311,8.05221927,207.48,207.43,5.441e-05]
[1735810762505,0.72261187,207.48,207.44,8.05221927]
[1735810762710,1.6394,207.53,207.44,8.05221927]
[1735810762711,8.77483114,207.52,207.44,8.05221927]
[1735810763331,8.77483114,207.52,207.45,8.05221927]
[1735810764245,0.72261187,207.53,207.49,8.05221927]
[1735810764613,0.72261187,207.55,207.49,8.05221927]
[1735810764829,0.72261187,207.55,207.5,8.05221927]
[1735810766621,0.72261187,207.55,207.48,8.05221927]
[1735810766933,8.77483114,207.55,207.48,8.05221927]
[1735810767137,8.05221927,207.53,207.45,8.05221927]
[1735810767438,8.05221927,207.51,207.44,8.05221927]
[1735810767616,0.72261187,207.5,207.44,8.05221927]
[1735810767816,0.72261187,207.5,207.43,8.05227368]
[1735810768312,12.77081187,207.5,207.43,8.05227368]
[1735810770136,12.77081187,207.5,207.44,8.05221927]
[1735810770524,12.77081187,207.5,207.45,8.05221927]
[1735810770737,12.77081187,207.5,207.44,8.05221927]
[1735810771140,0.72261187,207.5,207.46,8.05221927]
[1735810771344,0.72261187,207.51,207.46,8.05221927]
[1735810771642,1.6541,207.52,207.5,25.0]
[1735810772215,1.6541,207.52,207.5,33.05221927]
[1735810772443,0.72261187,207.55,207.5,33.05221927]
[1735810772628,0.72261187,207.55,207.5,25.0]
[1735810772940,0.72261187,207.55,207.5,33.05221927]
[1735810773244,0.72261187,207.56,207.5,33.05221927]
[1735810774947,8.77483114,207.56,207.5,25.0]
[1735810775443,20.82003114,207.56,207.5,25.0]
[1735810775645,8.05221927,207.55,207.5,25.0]
[1735810775945,0.72261187,207.54,207.5,25.0]
[1735810776743,8.77483114,207.54,207.5,25.0]
[1735810776945,0.72261187,207.54,207.5,25.0]
[1735810777246,8.77483114,207.54,207.5,25.0]
[1735810777745,20.09861927,207.53,207.5,25.0]
[1735810777931,0.72261187,207.52,207.5,25.0]
[1735810778132,8.77483114,207.52,207.5,25.0]
[1735810778722,20.09981927,207.51,207.5,25.0]
[1735810779122,12.0476,207.51,207.5,25.0]
[1735810779321,12.77021187,207.51,207.5,25.0]
[1735810780044,20.82243114,207.51,207.5,25.0]
[1735810780346,46.23281514,207.51,207.5,25.0]
[1735810781527,52.41071514,207.51,207.5,12.7245]
[1735810782048,52.41071514,207.51,207.5,4.7224]
[1735810782956,22.45593114,207.51,207.5,4.7224]
[1735810786947,14.40371187,207.51,207.5,4.7224]
[1735810787142,12.77021187,207.51,207.5,4.7224]
[1735810788241,20.82243114,207.51,207.5,4.7224]
[1735810789354,20.82243114,207.51,207.5,0.3634]
[1735810790253,36.54709587,207.51,207.5,0.3634]
[1735810790451,44.59931514,207.51,207.5,0.3634]
[1735810791152,36.54709587,207.51,207.5,0.3634]
[1735810791329,44.59931514,207.51,207.5,0.3634]
[1735810796756,23.776884,207.5,207.43,5.441e-05]
[1735810797052,8.05221927,207.47,207.43,5.441e-05]
[1735810797258,0.72261187,207.46,207.43,5.441e-05]
[1735810797630,8.77483114,207.46,207.43,5.441e-05]
[1735810798270,8.05221927,207.45,207.43,5.441e-05]
[1735810798457,0.72261187,207.44,207.43,5.441e-05]
[1735810799340,0.72261187,207.45,207.43,5.441e-05]
[1735810803159,20.10381927,207.44,207.43,5.441e-05]
[1735810805571,43.88070327,207.44,207.43,5.441e-05]
[1735810806348,44.60331514,207.44,207.43,5.441e-05]
[1735810807660,136.89994559,207.38,207.35,11.56626562]